{"text_format":"1","workbook":"xlsx","n_sheets":2,"sheets":["بيانات العملاء","التحصيل اليومى"],"not_rendered":{"charts":0,"images":0,"macros":1,"external_links":0,"defined_names":0,"comments":0,"pivot_tables":0},"unopened":[],"bounds":{"document_bytes":16777216,"sheet_cells":100000,"rows_first":2000,"rows_last":500,"rows_between":2000,"halvings":0,"cell_chars":16384,"cell_head_chars":4096},"cells_cut":0,"cells_raw":0,"read":"whole","date_system":"1900"}

{"sheet":"بيانات العملاء","index":0,"n_rows":11,"n_cols":6,"rows_kept":11,"cut":false,"hidden":false,"merged":[]}
["م","الاسم","الاشتراك","المدفوع","المتبقى","موعد القسط التالى"]
[1,"هناء محمد عبدالحميد",1200,{"$f":"SUMIF('التحصيل اليومى'!B:B,الجدول1[[#This Row],[م]],'التحصيل اليومى'!D:D)","v":900},{"$f":"الجدول1[[#This Row],[الاشتراك]]-الجدول1[[#This Row],[المدفوع]]","v":300}]
[2,"سهام خالد مهدى",1200,{"$f":"SUMIF('التحصيل اليومى'!B:B,الجدول1[[#This Row],[م]],'التحصيل اليومى'!D:D)","v":0},{"$f":"الجدول1[[#This Row],[الاشتراك]]-الجدول1[[#This Row],[المدفوع]]","v":1200}]
[3,"رشا سعيد حسن",1200,{"$f":"SUMIF('التحصيل اليومى'!B:B,الجدول1[[#This Row],[م]],'التحصيل اليومى'!D:D)","v":0},{"$f":"الجدول1[[#This Row],[الاشتراك]]-الجدول1[[#This Row],[المدفوع]]","v":1200}]
[4,"سارة جمال محمد",1200,{"$f":"SUMIF('التحصيل اليومى'!B:B,الجدول1[[#This Row],[م]],'التحصيل اليومى'!D:D)","v":650},{"$f":"الجدول1[[#This Row],[الاشتراك]]-الجدول1[[#This Row],[المدفوع]]","v":550}]
[5,"سناء عبدالرحمن طه",1200,{"$f":"SUMIF('التحصيل اليومى'!B:B,الجدول1[[#This Row],[م]],'التحصيل اليومى'!D:D)","v":300},{"$f":"الجدول1[[#This Row],[الاشتراك]]-الجدول1[[#This Row],[المدفوع]]","v":900}]
[6,"هدية عبدالله نعمان",1200,{"$f":"SUMIF('التحصيل اليومى'!B:B,الجدول1[[#This Row],[م]],'التحصيل اليومى'!D:D)","v":0},{"$f":"الجدول1[[#This Row],[الاشتراك]]-الجدول1[[#This Row],[المدفوع]]","v":1200}]
[7,"هدى راشد عبدالغنى",1200,{"$f":"SUMIF('التحصيل اليومى'!B:B,الجدول1[[#This Row],[م]],'التحصيل اليومى'!D:D)","v":500},{"$f":"الجدول1[[#This Row],[الاشتراك]]-الجدول1[[#This Row],[المدفوع]]","v":700}]
[8,"حسناء فرج محمد",1200,{"$f":"SUMIF('التحصيل اليومى'!B:B,الجدول1[[#This Row],[م]],'التحصيل اليومى'!D:D)","v":0},{"$f":"الجدول1[[#This Row],[الاشتراك]]-الجدول1[[#This Row],[المدفوع]]","v":1200}]
[9,"كريمة محمدين عبدالجبار",1200,{"$f":"SUMIF('التحصيل اليومى'!B:B,الجدول1[[#This Row],[م]],'التحصيل اليومى'!D:D)","v":500},{"$f":"الجدول1[[#This Row],[الاشتراك]]-الجدول1[[#This Row],[المدفوع]]","v":700}]
[10,"فاطمة زكى فتح الباب",800,{"$f":"SUMIF('التحصيل اليومى'!B:B,الجدول1[[#This Row],[م]],'التحصيل اليومى'!D:D)","v":0},{"$f":"الجدول1[[#This Row],[الاشتراك]]-الجدول1[[#This Row],[المدفوع]]","v":800}]

{"sheet":"التحصيل اليومى","index":1,"n_rows":12,"n_cols":10,"rows_kept":12,"cut":false,"hidden":false,"merged":[]}
["رقم الايصال","كود العميل","الاسم","المبلغ المدفوع","موعد القسط التالى"]
[1,1,{"$f":"VLOOKUP(B2,الجدول1[[م]:[الاشتراك]],2,0)","v":"هناء محمد عبدالحميد"},300,"2023-06-01"]
[2,4,{"$f":"VLOOKUP(B3,الجدول1[[م]:[الاشتراك]],2,0)","v":"سارة جمال محمد"},150,"2023-06-02"]
[3,7,{"$f":"VLOOKUP(B4,الجدول1[[م]:[الاشتراك]],2,0)","v":"هدى راشد عبدالغنى"},200,"2023-06-02"]
[4,5,{"$f":"VLOOKUP(B5,الجدول1[[م]:[الاشتراك]],2,0)","v":"سناء عبدالرحمن طه"},300,"2023-06-04"]
[5,4,{"$f":"VLOOKUP(B6,الجدول1[[م]:[الاشتراك]],2,0)","v":"سارة جمال محمد"},500,"2023-06-05"]
[6,1,{"$f":"VLOOKUP(B7,الجدول1[[م]:[الاشتراك]],2,0)","v":"هناء محمد عبدالحميد"},400,"2023-06-06"]
[7,7,{"$f":"VLOOKUP(B8,الجدول1[[م]:[الاشتراك]],2,0)","v":"هدى راشد عبدالغنى"},300,"2023-06-07"]
[8,1,{"$f":"VLOOKUP(B9,الجدول1[[م]:[الاشتراك]],2,0)","v":"هناء محمد عبدالحميد"},200,"2023-06-08"]
[9,9,{"$f":"VLOOKUP(B10,الجدول1[[م]:[الاشتراك]],2,0)","v":"كريمة محمدين عبدالجبار"},500,"2023-06-09"]
[10,null,null,null,null,null,null,null,null,{"$f":"MAX(E2,E7,E9)","v":"2023-06-08"}]
[11,null,{"$f":"VLOOKUP(B12,الجدول1[[م]:[الاشتراك]],2,0)","v":{"$error":"#N/A"}}]